fUSD/lending_fUSD_20240327
["ID","MTS","AMOUNT","RATE_DAILY","PERIOD"]
[320754598,1711546234914,-650.42134017,0.000509,120]
[320754599,1711546234923,-650.42134017,0.000509,120]
[320754600,1711546234932,-650.42134017,0.000509,120]
[320754601,1711546234941,-650.42134017,0.000509,120]
[320754602,1711546234950,-650.42134017,0.000509,120]
[320754603,1711546234959,-650.42134017,0.000509,120]
[320754604,1711546234968,-650.42134017,0.000509,120]
[320754605,1711546234978,-650.42134017,0.000509,120]
[320754606,1711546234987,-650.42134017,0.000509,120]
[320754607,1711546234996,-650.42134017,0.000509,120]
[320754608,1711546235007,-650.42134017,0.000509,120]
[320754609,1711546235017,-650.42134017,0.000509,120]
[320754610,1711546235027,-650.42134017,0.000509,120]
[320754611,1711546235036,-1619.7583096,0.000511,30]
[320754612,1711546235046,-505.09169785,0.00051109,4]
[320754613,1711546235056,-325.44996838,0.0005111,4]
[320754614,1711546235065,-540.285,0.00051214,120]
[320754615,1711546235074,-1252.0,0.00051214,120]
[320754616,1711546235084,-157.12174514,0.00051227,60]
[320754617,1711546235095,-155.53480044,0.0005137,60]
[320754618,1711546235104,-155.60962995,0.00051447,60]
[320754619,1711546235114,-155.60962995,0.00051583,60]
[320754620,1711546235124,-650.42134017,0.00051603,120]
[320754621,1711546235134,-500.0,0.0005172,120]
[320754622,1711546235144,-155.60962995,0.00051785,60]
[320754623,1711546235154,-155.53480044,0.00051825,60]
[320754624,1711546235164,-152.99416155,0.00051863,60]
[320754625,1711546235174,-154.37388192,0.00051982,60]
[320754626,1711546235183,-2437.42170417,0.00052,4]
[320754627,1711546235193,-1000.0,0.0005201,2]
[320754628,1711546235204,-154.23237935,0.00052016,60]
[320754629,1711546235214,-154.23237935,0.00052049,60]
[320754630,1711546235224,-2521.22,0.00052054,2]
[320754631,1711546235241,-155.53480044,0.00052117,60]
[320754632,1711546235300,-1000.0,0.00052272,120]
[320754633,1711546235311,-154.23237935,0.00052283,60]
[320754634,1711546235321,-155.53480044,0.00052325,60]
[320754635,1711546235331,-650.42134017,0.00052376,120]
[320754636,1711546235342,-161.23301519,0.00052624,60]
[320754637,1711546235353,-155.53480044,0.00052646,60]
[320754638,1711546235365,-152.99416155,0.00052833,60]
[320754639,1711546235378,-2521.22,0.00052876,120]
[320754640,1711546235389,-153.23629697,0.00052899,60]
[320754641,1711546235401,-302.8,0.00053087,120]
[320754642,1711546235413,-650.42134017,0.00053149,120]
[320754643,1711546235424,-471.098154,0.00053198,106]
[320754644,1711546235434,-152.42,0.00053218,2]
[320754645,1711546235445,-161.77816621,0.0005327,60]
[320754646,1711546235456,-415.75772032,0.00053324,14]
[320754647,1711546235466,-1000.0,0.00053324,2]
[320754648,1711546235476,-5081.8145,0.00053324,2]
[320754649,1711546235486,-500.0,0.00053361,2]
[320754650,1711546235496,-314.065434,0.00053498,104]
[320754651,1711546235505,-155.82,0.000536,7]
[320754652,1711546235516,-1362.35541895,0.00053696,4]
[320754653,1711546235526,-2521.22,0.00053698,120]
[320754654,1711546235535,-415.7577203,0.00053725,14]
[320754655,1711546235545,-386.60453288,0.0005375,30]
[320754656,1711546235556,-471.098154,0.00053798,105]
[320754657,1711546235566,-154.23237935,0.00053943,60]
[320754658,1711546235576,-4535.3448945,0.00054,4]
[320754659,1711546235586,-154.23237935,0.00054023,60]
[320754660,1711546235598,-415.7577203,0.00054126,14]
[320754661,1711546235608,-537.0,0.00054214,120]
[320754662,1711546235619,-596.8023453,0.00054244,120]
[320754663,1711546235630,-151.71910059,0.00054402,60]
[320754664,1711546235641,-471.097848,0.00054498,95]
[320754665,1711546235651,-154.23237935,0.00054506,60]
[320754666,1711546235662,-2521.22,0.0005452,120]
[320754667,1711546235672,-415.7577203,0.00054527,14]
[320754668,1711546235682,-382.29077336,0.00054592,2]
[320754669,1711546235691,-160.28769818,0.00054592,2]
[320754670,1711546235701,-161.23301519,0.000546,60]
[320754671,1711546235710,-1526.3316782,0.0005468,90]
[320754672,1711546235720,-150.89,0.00054681,120]
[320754673,1711546235729,-150.89,0.00054681,120]
[320754674,1711546235739,-150.89,0.00054681,120]
[320754675,1711546235750,-150.89,0.00054681,120]
[320754676,1711546235760,-150.89,0.00054681,120]
[320754677,1711546235770,-150.89,0.00054681,120]
[320754678,1711546235780,-150.89,0.00054681,120]
[320754679,1711546235791,-150.89,0.00054681,120]
[320754680,1711546235801,-150.89,0.00054682,120]
[320754681,1711546235812,-150.89,0.00054682,120]
[320754682,1711546235822,-403.3280341,0.00054686,120]
[320754683,1711546235833,-19457.17744431,0.00054691,30]
[320754684,1711546235867,-14464.64650889,0.00054691,30]
[320754685,1711546235919,-1425.28,0.00054691,30]
[320754686,1711546235938,-21369.43924684,0.00054691,30]
[320754687,1711546235950,-10912.55940017,0.00054691,30]
[320754688,1711546235962,-18235.28331016,0.00054691,30]
[320754689,1711546235975,-2524.20588058,0.00054691,30]
[320754690,1711546235998,-185765.57854607,0.00054691,30]
[320754691,1711546236011,-620.07570106,0.00054691,30]
[320754692,1711546236024,-40863.05524134,0.00054691,30]
[320754693,1711546236037,-1406.99208512,0.00054691,30]
[320754694,1711546236050,-105393.75396875,0.00054691,30]
[320754708,1711546238335,-0.01329442,0.00041853,2]
[320754709,1711546238350,-5969.68166638,0.00041853,2]
[320754710,1711546238362,-2024.0261599,0.00041853,2]
[320754711,1711546238376,-9336.92656634,0.00041853,2]
[320754712,1711546238390,-650.42134017,0.00053922,120]
[320754713,1711546238407,-262.4447936,0.0005469,4]
[320754714,1711546238416,-21463.32457158,0.00054691,30]
[320754715,1711546238594,-1426.02875068,0.00054691,30]
[320754716,1711546238608,-21426.91114923,0.00054691,30]
[320754717,1711546238659,-126487.48859219,0.00054691,30]
[320754718,1711546238671,-640052.90844651,0.00054691,30]
[320754719,1711546238684,-335052.43028035,0.00054691,30]
[320754720,1711546238693,-92468.60962344,0.00054692,2]
[320754721,1711546238718,-177.59415234,0.00054681,2]
[320754722,1711546238728,-152531.39037656,0.00054692,2]
[320754723,1711546238738,-5000.0,0.00054694,3]
[320754724,1711546238747,-11953.00323262,0.00054694,32]
[320754725,1711546238757,-171.8647512,0.00054694,120]
[320754726,1711546238766,-4200.1962656,0.00054694,2]
[320754727,1711546238776,-304.14110194,0.00054694,2]
[320754728,1711546238785,-263.53012625,0.00054749,53]
[320754729,1711546238795,-150.89,0.00054784,120]
[320754730,1711546238804,-155.0,0.00054791,4]
[320754731,1711546238814,-155.0,0.00054792,4]
[320754732,1711546238823,-3924.89809682,0.00054792,40]
[320754733,1711546238833,-166.53745902,0.00054792,4]
[320754734,1711546238842,-204.93453493,0.00054792,4]
[320754735,1711546238853,-1236.48384141,0.00054792,4]
[320754736,1711546238863,-281.17758265,0.00054792,4]
[320754737,1711546238873,-7841.77272824,0.00054792,4]
[320754739,1711546238882,-39285.18979343,0.00054793,7]
[320754741,1711546238892,-19360.64,0.00054794,120]
[320754742,1711546238902,-824.90364767,0.00054794,85]
[320754743,1711546238912,-2486.60095131,0.00054794,4]
[320754744,1711546238922,-799.21549566,0.00054794,90]
[320754745,1711546238932,-200.0,0.00054794,120]
[320754746,1711546238943,-500.0,0.00054794,120]
[320754747,1711546238954,-500.0,0.00054794,120]
[320754748,1711546238969,-500.0,0.00054794,120]
[320754749,1711546238979,-596.57484337,0.00054794,120]
[320754750,1711546238990,-500.0,0.00054794,120]
[320754751,1711546239001,-500.0,0.00054794,120]
[320754752,1711546239012,-500.0,0.00054794,120]
[320754753,1711546239022,-638.18,0.00054794,120]
[320754754,1711546239033,-500.0,0.00054794,120]
[320754755,1711546239044,-500.0,0.00054794,120]
[320754756,1711546239055,-586.89,0.00054794,120]
[320754757,1711546239065,-500.0,0.00054794,120]
[320754758,1711546239076,-407.31360815,0.00054794,120]
[320754759,1711546239086,-500.0,0.00054794,120]
[320754760,1711546239099,-626.37,0.00054794,120]
[320754761,1711546239110,-500.0,0.00054794,120]
[320754762,1711546239121,-500.0,0.00054794,120]
[320754763,1711546239132,-500.0,0.00054794,120]
[320754764,1711546239143,-708.09,0.00054794,120]
[320754765,1711546239153,-500.0,0.00054794,120]
[320754766,1711546239163,-500.0,0.00054794,120]
[320754767,1711546239175,-500.0,0.00054794,120]
[320754768,1711546239185,-500.0,0.00054794,120]
[320754769,1711546239196,-462.58223993,0.00054794,120]
[320754770,1711546239206,-500.0,0.00054794,120]
[320754771,1711546239217,-500.0,0.00054794,120]
[320754772,1711546239227,-543.86,0.00054794,120]
[320754773,1711546239239,-500.0,0.00054794,120]
[320754774,1711546239249,-563.18,0.00054794,120]
[320754775,1711546239259,-500.0,0.00054794,120]
[320754776,1711546239269,-500.0,0.00054794,120]
[320754777,1711546239280,-500.0,0.00054794,120]
[320754778,1711546239291,-500.0,0.00054794,120]
[320754779,1711546239302,-500.0,0.00054794,120]
[320754780,1711546239313,-500.0,0.00054794,120]
[320754781,1711546239324,-500.0,0.00054794,120]
[320754782,1711546239335,-500.0,0.00054794,120]
[320754783,1711546239579,-486.72,0.00054794,120]
[320754784,1711546239600,-498.44389385,0.00054794,120]
[320754785,1711546239612,-500.0,0.00054794,120]
[320754786,1711546239624,-500.0,0.00054794,120]
[320754787,1711546239636,-500.0,0.00054794,120]
[320754788,1711546239649,-500.0,0.00054794,120]
[320754789,1711546239662,-542.27593737,0.00054794,120]
[320754790,1711546239673,-506.24247577,0.00054794,120]
[320754791,1711546239685,-464.91940251,0.00054794,120]
[320754792,1711546239700,-500.0,0.00054794,120]
[320754793,1711546239712,-500.0,0.00054794,120]
[320754794,1711546239724,-500.0,0.00054794,120]
[320754795,1711546239735,-254.98,0.00054794,120]
[320754796,1711546239746,-500.0,0.00054794,120]
[320754797,1711546239757,-500.0,0.00054794,120]
[320754798,1711546239770,-500.0,0.00054794,120]
[320754799,1711546239781,-500.0,0.00054794,120]
[320754800,1711546239792,-500.0,0.00054794,120]
[320754801,1711546239803,-500.0,0.00054794,120]
[320754802,1711546239814,-500.0,0.00054794,120]
[320754803,1711546239825,-500.0,0.00054794,120]
[320754804,1711546239837,-276.26503715,0.00054794,120]
[320754805,1711546239852,-500.0,0.00054794,120]
[320754806,1711546239864,-500.0,0.00054794,120]
[320754807,1711546239875,-735.73,0.00054794,120]
[320754808,1711546239886,-500.0,0.00054794,120]
[320754809,1711546239897,-500.0,0.00054794,120]
[320754810,1711546239908,-255.54,0.00054794,120]
[320754811,1711546239922,-500.0,0.00054794,120]
[320754812,1711546239933,-508.5,0.00054794,120]
[320754813,1711546239945,-667.56673305,0.00054794,120]
[320754814,1711546239958,-500.0,0.00054794,120]
[320754815,1711546239969,-608.18,0.00054794,120]
[320754816,1711546239980,-500.0,0.00054794,120]
[320754817,1711546239992,-500.0,0.00054794,120]
[320754818,1711546240004,-1125.86,0.00054794,120]
[320754819,1711546240016,-500.0,0.00054794,120]
[320754820,1711546240027,-1843.65,0.00054794,120]
[320754821,1711546240039,-500.0,0.00054794,120]
[320754823,1711546240050,-500.0,0.00054794,120]
[320754824,1711546240063,-500.0,0.00054794,120]
[320754825,1711546240074,-1000.0,0.00054794,120]
[320754826,1711546240086,-500.0,0.00054794,120]
[320754827,1711546240100,-598.38,0.00054794,120]
[320754828,1711546240113,-510.94,0.00054794,60]
[320754829,1711546240126,-500.0,0.00054794,120]
[320754830,1711546240138,-500.0,0.00054794,120]
[320754831,1711546240151,-500.0,0.00054794,120]
[320754832,1711546240163,-500.0,0.00054794,120]
[320754833,1711546240174,-500.0,0.00054794,120]
[320754834,1711546240185,-696.37,0.00054794,120]
[320754835,1711546240196,-500.0,0.00054794,120]
[320754836,1711546240207,-500.0,0.00054794,120]
[320754837,1711546240218,-500.0,0.00054794,120]
[320754838,1711546240229,-1625.34,0.00054794,120]
[320754839,1711546240240,-500.0,0.00054794,120]
[320754840,1711546240251,-500.0,0.00054794,120]
[320754841,1711546240262,-500.0,0.00054794,120]
[320754842,1711546240273,-500.0,0.00054794,120]
[320754843,1711546240284,-500.0,0.00054794,120]
[320754844,1711546240295,-500.0,0.00054794,120]
[320754845,1711546240305,-500.0,0.00054794,120]
[320754846,1711546240315,-500.0,0.00054794,120]
[320754847,1711546240326,-500.0,0.00054794,120]
[320754848,1711546240337,-500.0,0.00054794,120]
[320754849,1711546240351,-500.0,0.00054794,120]
[320754850,1711546240362,-500.0,0.00054794,120]
[320754851,1711546240376,-500.0,0.00054794,120]
[320754852,1711546240386,-500.0,0.00054794,120]
[320754853,1711546240396,-500.0,0.00054794,120]
[320754854,1711546240408,-500.0,0.00054794,120]
[320754855,1711546240419,-500.0,0.00054794,120]
[320754856,1711546240430,-528.3,0.00054794,120]
[320754857,1711546240441,-500.0,0.00054794,120]
[320754858,1711546240454,-500.0,0.00054794,120]
[320754859,1711546240465,-390.35571363,0.00054794,120]
[320754860,1711546240475,-401.81,0.00054794,120]
[320754861,1711546240486,-500.0,0.00054794,120]
[320754862,1711546240496,-500.0,0.00054794,120]
[320754863,1711546240506,-500.0,0.00054794,120]
[320754864,1711546240516,-500.0,0.00054794,120]
[320754865,1711546240526,-500.0,0.00054794,120]
[320754866,1711546240536,-500.0,0.00054794,120]
[320754867,1711546240546,-500.0,0.00054794,120]
[320754868,1711546240556,-656.03,0.00054794,120]
[320754869,1711546240565,-500.0,0.00054794,120]
[320754870,1711546240575,-500.0,0.00054794,120]
[320754871,1711546240584,-500.0,0.00054794,120]
[320754872,1711546240597,-1286.21,0.00054794,120]
[320754873,1711546240606,-1035.35,0.00054794,120]
[320754874,1711546240617,-1349.26,0.00054794,120]
[320754875,1711546240627,-500.0,0.00054794,120]
[320754876,1711546240636,-500.0,0.00054794,120]
[320754877,1711546240646,-500.0,0.00054794,120]
[320754878,1711546240669,-500.0,0.00054794,120]
[320754879,1711546240679,-725.7,0.00054794,120]
[320754880,1711546240689,-500.0,0.00054794,120]
[320754881,1711546240699,-500.0,0.00054794,120]
[320754882,1711546240708,-500.0,0.00054794,120]
[320754883,1711546240719,-500.0,0.00054794,120]
[320754884,1711546240729,-500.0,0.00054794,120]
[320754885,1711546240739,-500.0,0.00054794,120]
[320754886,1711546240749,-720.29,0.00054794,120]
[320754887,1711546240759,-500.0,0.00054794,120]
[320754888,1711546240769,-500.0,0.00054794,120]
[320754889,1711546240779,-500.0,0.00054794,120]
[320754890,1711546240790,-679.92,0.00054794,120]
[320754891,1711546240800,-500.0,0.00054794,120]
[320754892,1711546240810,-500.0,0.00054794,120]
[320754893,1711546240820,-500.0,0.00054794,120]
[320754894,1711546240831,-500.0,0.00054794,120]
[320754895,1711546240841,-518.87,0.00054794,120]
[320754896,1711546240854,-500.0,0.00054794,120]
[320754897,1711546240864,-500.0,0.00054794,120]
[320754898,1711546240876,-273.56,0.00054794,120]
[320754899,1711546240886,-455.38937021,0.00054794,120]
[320754900,1711546240897,-1000.0,0.00054794,120]
[320754901,1711546240908,-500.0,0.00054794,120]
[320754902,1711546240918,-712.56,0.00054794,120]
[320754903,1711546240928,-560.6,0.00054794,120]
[320754904,1711546240939,-500.0,0.00054794,120]
[320754905,1711546240949,-702.36,0.00054794,120]
[320754906,1711546240960,-500.0,0.00054794,120]
[320754907,1711546240970,-500.0,0.00054794,120]
[320754908,1711546240980,-539.02,0.00054794,120]
[320754909,1711546240990,-166.79766437,0.00054794,120]
[320754910,1711546241000,-500.0,0.00054794,120]
[320754911,1711546241010,-500.0,0.00054794,120]
[320754912,1711546241020,-500.0,0.00054794,120]
[320754913,1711546241030,-500.0,0.00054794,120]
[320754914,1711546241040,-500.0,0.00054794,120]
[320754915,1711546241050,-500.0,0.00054794,120]
[320754916,1711546241060,-500.0,0.00054794,120]
[320754917,1711546241069,-500.0,0.00054794,120]
[320754918,1711546241078,-500.0,0.00054794,120]
[320754919,1711546241088,-731.02,0.00054794,120]
[320754920,1711546241100,-500.0,0.00054794,120]
[320754921,1711546241111,-167.44,0.00054794,120]
[320754922,1711546241122,-470.59121067,0.00054794,120]
[320754923,1711546241131,-500.0,0.00054794,120]
[320754925,1711546241141,-500.0,0.00054794,120]
[320754927,1711546241152,-652.69,0.00054794,120]
[320754929,1711546241162,-508.68,0.00054794,120]
[320754930,1711546241173,-1364.67,0.00054794,120]
[320754932,1711546241183,-500.0,0.00054794,120]
[320754934,1711546241194,-500.0,0.00054794,120]
[320754936,1711546241205,-888.28,0.00054794,120]
[320754938,1711546241215,-1571.16,0.00054794,120]
[320754940,1711546241226,-524.2,0.00054794,120]
[320754942,1711546241237,-788.85,0.00054794,120]
[320754944,1711546241249,-500.0,0.00054794,120]
[320754945,1711546241261,-500.0,0.00054794,120]
[320754947,1711546241272,-500.0,0.00054794,120]
[320754950,1711546241284,-500.0,0.00054794,120]
[320754952,1711546241296,-606.55,0.00054794,120]
[320754954,1711546241307,-500.0,0.00054794,120]
[320754955,1711546241318,-500.0,0.00054794,120]
[320754957,1711546241329,-500.0,0.00054794,120]
[320754959,1711546241339,-500.0,0.00054794,120]
[320754961,1711546241358,-500.0,0.00054794,120]
[320754963,1711546241371,-500.0,0.00054794,120]
[320754965,1711546241383,-979.53,0.00054794,120]
[320754967,1711546241394,-500.0,0.00054794,120]
[320754969,1711546241407,-546.29,0.00054794,120]
[320754971,1711546241419,-523.62,0.00054794,120]
[320754973,1711546241431,-735.73,0.00054794,120]
[320754975,1711546241442,-1430.03,0.00054794,120]
[320754977,1711546241456,-500.0,0.00054794,120]
[320754979,1711546241468,-500.0,0.00054794,120]
[320754981,1711546241479,-512.99,0.00054794,120]
[320754983,1711546241490,-500.0,0.00054794,120]
[320754984,1711546241502,-500.0,0.00054794,120]
[320754985,1711546241513,-500.0,0.00054794,120]
[320754986,1711546241524,-655.53,0.00054794,120]
[320754987,1711546241534,-500.0,0.00054794,7]
[320754988,1711546241545,-643.82,0.00054794,120]
[320754989,1711546241559,-500.0,0.00054794,120]
[320754990,1711546241570,-945.38,0.00054794,120]
[320754991,1711546241582,-500.0,0.00054794,120]
[320754992,1711546241592,-500.0,0.00054794,120]
[320754993,1711546241608,-561.63,0.00054794,30]
[320754994,1711546241620,-500.0,0.00054794,120]
[320754995,1711546241631,-500.0,0.00054794,120]
[320754996,1711546241642,-500.0,0.00054794,120]
[320754997,1711546241653,-569.40070158,0.00054794,120]
[320754998,1711546241666,-500.0,0.00054794,120]
[320754999,1711546241678,-1344.28,0.00054794,120]
[320755000,1711546241690,-500.0,0.00054794,120]
[320755001,1711546241700,-500.0,0.00054794,120]
[320755002,1711546241713,-500.0,0.00054794,120]
[320755003,1711546241724,-500.0,0.00054794,120]
[320755004,1711546241735,-500.0,0.00054794,120]
[320755005,1711546241746,-500.0,0.00054794,120]
[320755006,1711546241757,-988.46,0.00054794,120]
[320755007,1711546241769,-500.0,0.00054794,120]
[320755008,1711546241781,-500.0,0.00054794,120]
[320755009,1711546241792,-500.0,0.00054794,120]
[320755010,1711546241804,-500.0,0.00054794,120]
[320755011,1711546241814,-600.1,0.00054794,120]
[320755012,1711546241825,-557.47,0.00054794,120]
[320755013,1711546241837,-500.0,0.00054794,120]
[320755014,1711546241852,-500.0,0.00054794,120]
[320755015,1711546241864,-500.25,0.00054794,120]
[320755016,1711546241875,-500.0,0.00054794,120]
[320755017,1711546241886,-500.0,0.00054794,120]
[320755018,1711546241897,-500.0,0.00054794,120]
[320755019,1711546241908,-567.33,0.00054794,120]
[320755020,1711546241920,-500.0,0.00054794,120]
[320755021,1711546241931,-500.0,0.00054794,120]
[320755022,1711546241942,-510.0974238,0.00054794,120]
[320755023,1711546241953,-500.0,0.00054794,120]
[320755024,1711546241965,-1394.47,0.00054794,120]
[320755025,1711546241979,-590.16,0.00054794,120]
[320755026,1711546241990,-500.0,0.00054794,120]
[320755027,1711546242002,-500.0,0.00054794,120]
[320755028,1711546242014,-500.0,0.00054794,120]
[320755029,1711546242025,-500.0,0.00054794,120]
[320755030,1711546242036,-500.0,0.00054794,120]
[320755031,1711546242047,-500.0,0.00054794,120]
[320755032,1711546242059,-500.0,0.00054794,120]
[320755033,1711546242075,-500.0,0.00054794,120]
[320755034,1711546242087,-500.0,0.00054794,120]
[320755035,1711546242103,-500.0,0.00054794,120]
[320755036,1711546242115,-500.0,0.00054794,120]
[320755037,1711546242127,-500.0,0.00054794,120]
[320755038,1711546242138,-500.0,0.00054794,120]
[320755039,1711546242150,-511.0,0.00054794,120]
[320755040,1711546242162,-500.0,0.00054794,120]
[320755041,1711546242173,-365.93,0.00054794,120]
[320755042,1711546242185,-710.04,0.00054794,120]
[320755043,1711546242197,-500.0,0.00054794,120]
[320755044,1711546242208,-500.0,0.00054794,120]
[320755045,1711546242220,-542.11,0.00054794,120]
[320755046,1711546242232,-500.0,0.00054794,120]
[320755047,1711546242243,-263.36281181,0.00054794,120]
[320755048,1711546242256,-506.08,0.00054794,120]
[320755049,1711546242267,-500.0,0.00054794,120]
[320755050,1711546242279,-500.0,0.00054794,120]
[320755051,1711546242291,-626.43,0.00054794,120]
[320755052,1711546242302,-500.0,0.00054794,120]
[320755053,1711546242314,-500.0,0.00054794,120]
[320755054,1711546242325,-500.0,0.00054794,120]
[320755055,1711546242336,-500.0,0.00054794,120]
[320755056,1711546242350,-500.0,0.00054794,120]
[320755057,1711546242363,-500.0,0.00054794,120]
[320755058,1711546242378,-1563.81,0.00054794,120]
[320755059,1711546242392,-500.0,0.00054794,120]
[320755060,1711546242403,-500.0,0.00054794,120]
[320755061,1711546242417,-510.06807033,0.00054794,120]
[320755062,1711546242428,-500.0,0.00054794,120]
[320755063,1711546242439,-500.0,0.00054794,120]
[320755064,1711546242451,-796.05,0.00054794,120]
[320755065,1711546242463,-500.0,0.00054794,120]
[320755066,1711546242475,-531.42,0.00054794,120]
[320755067,1711546242487,-722.74,0.00054794,120]
[320755068,1711546242499,-500.0,0.00054794,120]
[320755069,1711546242510,-1302.25,0.00054794,120]
[320755070,1711546242521,-500.0,0.00054794,120]
[320755071,1711546242532,-500.0,0.00054794,120]
[320755072,1711546242544,-500.0,0.00054794,120]
[320755073,1711546242555,-555.64,0.00054794,120]
[320755074,1711546242566,-500.0,0.00054794,120]
[320755075,1711546242577,-500.0,0.00054794,120]
[320755076,1711546242588,-507.66,0.00054794,120]
[320755077,1711546242602,-500.0,0.00054794,120]
[320755078,1711546242612,-1249.7,0.00054794,120]
[320755079,1711546242623,-500.0,0.00054794,120]
[320755080,1711546242639,-500.0,0.00054794,120]
[320755081,1711546242649,-506.77389832,0.00054794,120]
[320755082,1711546242661,-500.0,0.00054794,120]
[320755083,1711546242672,-684.28,0.00054794,120]
[320755084,1711546242684,-629.16,0.00054794,120]
[320755085,1711546242696,-536.56,0.00054794,120]
[320755086,1711546242707,-500.0,0.00054794,120]
[320755087,1711546242718,-500.0,0.00054794,120]
[320755088,1711546242729,-500.0,0.00054794,120]
[320755089,1711546242741,-653.48,0.00054794,120]
[320755090,1711546242752,-503.31613779,0.00054794,120]
[320755091,1711546242763,-500.0,0.00054794,120]
[320755092,1711546242774,-500.0,0.00054794,120]
[320755093,1711546242785,-500.0,0.00054794,120]
[320755094,1711546242796,-500.0,0.00054794,120]
[320755095,1711546242809,-500.0,0.00054794,120]
[320755096,1711546242820,-500.0,0.00054794,120]
[320755097,1711546242831,-500.0,0.00054794,120]
[320755098,1711546242842,-500.0,0.00054794,120]
[320755099,1711546242858,-1486.24,0.00054794,120]
[320755100,1711546242869,-1283.94,0.00054794,120]
[320755101,1711546242879,-500.0,0.00054794,120]
[320755102,1711546242892,-222.72,0.00054794,120]
[320755103,1711546242903,-500.0,0.00054794,120]
[320755104,1711546242915,-500.0,0.00054794,120]
[320755105,1711546242925,-913.76,0.00054794,120]
[320755106,1711546242937,-3721.37,0.00054794,120]
[320755107,1711546242947,-611.06,0.00054794,120]
[320755108,1711546242957,-754.35,0.00054794,120]
[320755109,1711546242968,-500.0,0.00054794,120]
[320755110,1711546242979,-359.06388506,0.00054794,120]
[320755111,1711546242989,-500.0,0.00054794,120]
[320755112,1711546243000,-500.0,0.00054794,120]
[320755115,1711546243011,-21873.43,0.00054794,120]
[320755118,1711546243021,-1916.66,0.00054794,120]
[320755119,1711546243032,-860.18,0.00054794,120]
[320755120,1711546243043,-500.0,0.00054794,120]
[320755121,1711546243054,-500.0,0.00054794,120]
[320755122,1711546243064,-500.0,0.00054794,120]
[320755124,1711546243074,-500.0,0.00054794,120]
[320755126,1711546243085,-509.66652084,0.00054794,120]
[320755127,1711546243100,-500.0,0.00054794,120]
[320755128,1711546243110,-500.0,0.00054794,120]
[320755129,1711546243121,-2119.71,0.00054794,120]
[320755130,1711546243132,-822.03,0.00054794,120]
[320755131,1711546243143,-500.0,0.00054794,120]
[320755133,1711546243153,-500.0,0.00054794,120]
[320755135,1711546243165,-500.0,0.00054794,120]
[320755137,1711546243176,-619.23,0.00054794,120]
[320755140,1711546243187,-500.0,0.00054794,120]
[320755141,1711546243199,-1003.22,0.00054794,120]
[320755143,1711546243210,-682.74,0.00054794,120]
[320755145,1711546243226,-500.0,0.00054794,120]
[320755148,1711546243237,-500.0,0.00054794,120]
[320755150,1711546243249,-500.0,0.00054794,120]
[320755152,1711546243259,-10277.58,0.00054794,120]
[320755154,1711546243271,-4248.24,0.00054794,120]
[320755156,1711546243282,-52410.75,0.00054794,120]
[320755158,1711546243293,-500.0,0.00054794,120]
[320755160,1711546243304,-1019.67,0.00054794,120]
[320755162,1711546243315,-3268.76,0.00054794,120]
[320755163,1711546243330,-503.745254,0.00054794,120]
[320755164,1711546243342,-849.29,0.00054794,120]